bitfinex/quotes_SOLUSD_20250829
["timestamp","ask_amount","ask_price","bid_price","bid_amount"]
[1756489246595,12.02070389,203.77,203.71,11.35070389]
[1756489246817,16.92766112,203.8,203.74,11.35070389]
[1756489247200,16.92766112,203.8,203.74,99.35070389]
[1756489247400,0.67,203.85,203.78,11.35070389]
[1756489247602,16.25651236,203.84,203.78,11.35070389]
[1756489247802,12.02070389,203.83,203.77,11.35070389]
[1756489248027,11.35070389,203.82,203.77,11.35070389]
[1756489248327,11.35070389,203.82,203.75,41.31]
[1756489248328,12.02070389,203.81,203.76,11.35070389]
[1756489249430,11.35070389,203.83,203.77,11.35070389]
[1756489249634,4.90628986,203.82,203.78,11.35070389]
[1756489250212,0.67,203.81,203.76,11.35070389]
[1756489250527,0.06,203.78,203.76,51.97070389]
[1756489250725,0.06,203.78,203.77,88.0]
[1756489252127,0.06,203.78,203.77,99.35070389]
[1756489252434,0.06,203.78,203.77,100.04070389]
[1756489253155,0.06,203.78,203.77,113.6362979]
[1756489253312,0.06,203.78,203.77,113.77845947]
[1756489253820,0.06,203.78,203.77,159.28595321]
[1756489254632,0.06,203.78,203.77,238.88595321]
[1756489255536,0.06,203.81,203.8,39.59559401]
[1756489255741,0.06,203.83,203.82,0.14216157]
[1756489255939,0.622326,203.88,203.85,26.0]
[1756489256240,0.622326,203.88,203.87,11.35070389]
[1756489256439,0.622326,203.88,203.87,51.95070389]
[1756489256622,0.622326,203.88,203.87,11.35070389]
[1756489256825,0.622326,203.88,203.87,52.64070389]
[1756489257663,0.622326,203.88,203.87,51.95070389]
[1756489258660,1.292326,203.88,203.87,128.6]
[1756489259349,6.19717198,203.88,203.87,88.0]
[1756489260551,23.30662138,203.88,203.79,0.69]
[1756489260850,17.1094494,203.87,203.82,17.1094494]
[1756489261043,23.30662138,203.88,203.83,40.58]
[1756489261241,0.7,203.87,203.83,57.6894494]
[1756489261441,0.622326,203.88,203.86,17.1094494]
[1756489261639,0.622326,203.88,203.87,17.1094494]
[1756489262035,6.22717198,203.88,203.86,40.58]
[1756489262445,6.22717198,203.88,203.86,57.6894494]
[1756489262639,0.7,203.87,203.85,40.58]
[1756489262850,0.7,203.86,203.85,40.58]
[1756489263157,0.7,203.86,203.83,17.1094494]
[1756489263158,17.8094494,203.86,203.83,40.58]
[1756489263339,0.7,203.85,203.83,40.58]
[1756489263650,0.7,203.85,203.83,128.58]
[1756489263858,5.52717198,203.88,203.84,17.1094494]
[1756489264022,5.52717198,203.88,203.85,17.1094494]
[1756489264227,17.8094494,203.87,203.83,128.58]
[1756489264453,0.7,203.86,203.83,128.58]
[1756489264655,0.7,203.85,203.83,128.58]
[1756489264852,17.8094494,203.84,203.83,88.0]
[1756489265343,0.7,203.84,203.83,88.0]
[1756489265655,17.8094494,203.84,203.83,88.0]
[1756489266328,17.8094494,203.84,203.8,40.58]
[1756489266329,4.90604915,203.83,203.8,40.58]
[1756489266531,22.71549855,203.83,203.8,40.58]
[1756489266830,0.7,203.82,203.8,40.58]
[1756489267041,0.7,203.82,203.78,40.58]
[1756489267241,0.7,203.81,203.78,40.58]
[1756489267469,17.8094494,203.8,203.69,5.59942117]
[1756489267655,17.1094494,203.78,203.72,17.1094494]
[1756489267850,17.8094494,203.78,203.73,40.58]
[1756489268182,0.7,203.77,203.73,40.58]
[1756489268355,4.90773458,203.76,203.73,40.58]
[1756489268564,17.8094494,203.78,203.73,40.58]
[1756489268771,5.60733053,203.78,203.77,0.03]
[1756489269383,22.71677993,203.78,203.77,88.03]
[1756489270043,26.0,203.75,203.67,17.1094494]
[1756489270244,26.0,203.75,203.7,17.1094494]
[1756489270245,0.7,203.74,203.7,17.1094494]
[1756489270549,22.01790667,203.73,203.68,17.1094494]
[1756489270755,22.01790667,203.73,203.67,40.58]
[1756489270951,17.1094494,203.69,203.6,0.69]
[1756489271152,17.1094494,203.68,203.62,17.1094494]
[1756489271466,17.1094494,203.63,203.61,0.2]
[1756489271675,17.8094494,203.62,203.61,0.2]
[1756489272026,26.0,203.66,203.61,0.2]
[1756489272027,26.7,203.66,203.61,0.2]
[1756489272291,20.0,203.76,203.65,17.1094494]
[1756489272292,0.7,203.71,203.65,17.1094494]
[1756489272498,0.7,203.75,203.68,17.1094494]
[1756489272662,17.1094494,203.84,203.71,17.1094494]
[1756489272663,0.7,203.79,203.71,17.1094494]
[1756489272863,0.7,203.78,203.63,4.91070051]
[1756489273074,17.1094494,203.69,203.66,88.0]
[1756489273275,17.8094494,203.72,203.66,105.1094494]
[1756489273594,17.1094494,203.71,203.66,88.0]
[1756489273782,17.1094494,203.7,203.66,88.0]
[1756489273996,17.8094494,203.7,203.66,88.0]
[1756489274888,26.0,203.73,203.66,92.91011466]
[1756489275097,17.1094494,203.74,203.68,17.1094494]
[1756489275388,17.1094494,203.72,203.66,92.91011466]
[1756489275602,17.1094494,203.7,203.66,88.0]
[1756489275802,0.7,203.72,203.66,88.0]
[1756489275994,0.7,203.72,203.67,17.1094494]
[1756489276298,17.1094494,203.71,203.66,88.0]
[1756489276496,17.1094494,203.7,203.66,88.0]
[1756489276798,17.1094494,203.7,203.66,92.9100123]
[1756489277367,17.1094494,203.69,203.66,88.0]
[1756489277572,26.0,203.74,203.66,88.0]
[1756489277573,17.1094494,203.67,203.66,88.0]
[1756489277789,17.8094494,203.67,203.61,0.2]
[1756489277992,17.1094494,203.62,203.61,0.2]
[1756489278603,17.1094494,203.71,203.61,5.80121246]
[1756489278796,0.7,203.7,203.65,17.1094494]
[1756489278997,17.1094494,203.69,203.64,17.1094494]
[1756489279168,17.8094494,203.69,203.63,57.9094494]
[1756489279374,12.06354624,203.69,203.63,52.16354624]
[1756489279889,0.7,203.69,203.64,11.36354624]
[1756489280269,0.7,203.68,203.63,52.16354624]
[1756489280488,16.97252244,203.71,203.65,11.36354624]
[1756489280796,11.36354624,203.7,203.67,88.0]
[1756489280991,11.36354624,203.68,203.67,88.0]
[1756489281194,12.06354624,203.68,203.67,88.0]
[1756489281501,4.9089762,203.71,203.67,88.0]
[1756489281684,26.0,203.69,203.67,88.0]
[1756489282000,0.7,203.68,203.67,88.0]
[1756489282572,26.0,203.7,203.67,88.0]
[1756489282773,16.27197018,203.74,203.68,11.36354624]
[1756489283000,26.0,203.73,203.68,16.27318105]
[1756489283672,26.7,203.73,203.68,16.27318105]
[1756489283884,26.7,203.73,203.68,11.36354624]
[1756489284473,26.0,203.73,203.68,11.36354624]
[1756489284672,26.0,203.73,203.66,4.90997996]
[1756489284673,26.0,203.73,203.69,11.36354624]
[1756489284869,0.7,203.72,203.66,79.6]
[1756489285092,12.06354624,203.72,203.66,11.36354624]
[1756489285298,11.36354624,203.7,203.64,11.36354624]
[1756489285808,11.36354624,203.7,203.66,0.03]
[1756489285975,11.36354624,203.7,203.66,88.03]
[1756489286304,0.7,203.71,203.66,88.03]
[1756489287295,4.90918016,203.7,203.66,88.03]
[1756489288180,11.36354624,203.68,203.66,88.03]
[1756489288390,12.06354624,203.68,203.66,88.03]
[1756489288589,11.36354624,203.68,203.66,88.03]
[1756489289907,0.14216157,203.76,203.66,88.03]
[1756489290086,11.36354624,203.75,203.7,11.36354624]
[1756489290280,12.06354624,203.74,203.68,11.36354624]
[1756489290479,11.36354624,203.73,203.67,12.05354624]
[1756489290775,11.36354624,203.75,203.69,11.36354624]
[1756489290979,11.36354624,203.74,203.68,11.36354624]
[1756489291517,11.36354624,203.74,203.68,16.27320845]
[1756489293882,11.42354624,203.77,203.74,88.0]
[1756489295294,0.06,203.77,203.74,92.90813823]
[1756489295620,11.42354624,203.77,203.74,92.90813823]
[1756489296487,0.06,203.77,203.74,88.0]
[1756489296691,11.42354624,203.77,203.74,88.0]
[1756489297415,0.06,203.77,203.75,12.02354624]
[1756489297575,0.06,203.77,203.76,12.02354624]
[1756489298477,0.06,203.77,203.76,16.93128082]
[1756489300406,0.06,203.77,203.76,104.93128082]
[1756489301790,0.06,203.77,203.76,88.0]
[1756489301981,11.42354624,203.77,203.76,88.0]
[1756489302384,12.09354624,203.77,203.76,88.0]
[1756489302579,12.09354624,203.77,203.69,40.6]
[1756489302785,11.36354624,203.74,203.69,51.96354624]
[1756489302990,0.73,203.77,203.69,51.96354624]
[1756489303282,11.36354624,203.75,203.69,51.96354624]
[1756489303697,11.36354624,203.75,203.7,4.90918016]
[1756489304013,12.03354624,203.75,203.7,4.90918016]
[1756489304202,4.96755041,203.77,203.7,16.2727264]
[1756489304203,11.36354624,203.76,203.7,16.2727264]
[1756489304503,0.06,203.77,203.73,11.36354624]
[1756489304887,11.42354624,203.77,203.72,51.96354624]
[1756489305087,0.06,203.77,203.73,0.66]
[1756489305299,11.42354624,203.77,203.73,0.66]
[1756489305495,11.36354624,203.75,203.73,88.0]
[1756489305683,11.36354624,203.74,203.73,88.0]
[1756489305895,12.03354624,203.74,203.73,88.0]
[1756489306695,37.36354624,203.75,203.73,88.0]
[1756489307096,11.36354624,203.74,203.73,88.0]
[1756489307297,12.03354624,203.74,203.73,88.0]
[1756489307908,16.94176259,203.74,203.73,88.0]
[1756489308110,16.94176259,203.74,203.67,40.63]
[1756489308288,11.36354624,203.7,203.67,0.03]
[1756489309309,0.67,203.73,203.67,0.03]
[1756489309815,31.57861991,203.73,203.67,0.03]
[1756489310207,11.36354624,203.68,203.67,0.03]
[1756489310718,12.03354624,203.68,203.67,0.03]
[1756489311014,38.03354624,203.68,203.67,0.03]
[1756489312016,42.94320845,203.68,203.67,0.03]
[1756489312206,37.36354624,203.68,203.67,0.03]
[1756489314393,42.94320845,203.68,203.67,0.03]
[1756489314805,38.03354624,203.68,203.67,0.03]
[1756489315318,5.57917182,203.71,203.67,0.03]
[1756489315501,5.57824849,203.74,203.67,0.69]
[1756489315707,40.6,203.73,203.67,0.69]
[1756489315916,11.36354624,203.71,203.67,0.69]
[1756489316103,11.36354624,203.72,203.68,4.90966221]
[1756489316303,11.36354624,203.73,203.69,0.66]
[1756489316506,11.36354624,203.74,203.69,0.66]
[1756489316712,26.06,203.77,203.7,12.02354624]
[1756489316904,11.36354624,203.74,203.68,56.87320845]
[1756489317131,11.36354624,203.74,203.73,88.0]
[1756489317344,11.36354624,203.75,203.73,88.0]
[1756489317548,0.73,203.77,203.73,88.0]
[1756489317862,11.42354624,203.77,203.73,88.0]
[1756489318041,11.42354624,203.77,203.73,88.66]
[1756489318234,11.36354624,203.76,203.73,88.66]
[1756489318430,11.36354624,203.76,203.73,88.0]
[1756489318629,11.36354624,203.75,203.73,88.0]
[1756489319363,12.03354624,203.74,203.73,88.0]
[1756489319533,11.36354624,203.74,203.73,88.0]
[1756489320354,11.36354624,203.76,203.73,88.0]
[1756489320528,11.42354624,203.77,203.73,88.66]
[1756489320743,11.36354624,203.76,203.73,88.0]
[1756489321956,11.36354624,203.76,203.73,92.90838784]
[1756489322157,11.36354624,203.75,203.73,88.0]
[1756489322372,11.36354624,203.74,203.73,88.0]
[1756489323483,12.04354624,203.74,203.73,88.03]
[1756489324067,4.90799846,203.75,203.73,88.03]
[1756489324265,11.36354624,203.74,203.73,88.03]
[1756489324770,16.95176259,203.74,203.73,88.03]
[1756489325268,12.04354624,203.74,203.73,88.03]
[1756489325460,16.95176259,203.74,203.73,88.03]
[1756489326061,16.95176259,203.74,203.73,0.03]
[1756489326657,78.90910456,203.77,203.73,0.03]
[1756489326658,11.36354624,203.75,203.73,0.03]
[1756489326863,0.06,203.77,203.73,0.69]
[1756489327076,0.06,203.77,203.75,11.36354624]
[1756489327278,0.06,203.77,203.76,12.02354624]
[1756489327868,0.06,203.77,203.76,41.24]
[1756489328176,0.06,203.77,203.76,53.09431969]
[1756489328376,0.06,203.8,203.79,26.0]
[1756489328561,0.06,203.82,203.79,78.43424745]
[1756489328764,0.06,203.82,203.8,0.66]
[1756489328966,0.06,203.82,203.81,99.36354624]
[1756489329159,0.06,203.82,203.81,100.02354624]
[1756489329578,0.06,203.82,203.81,88.0]
[1756489329887,11.42354624,203.82,203.81,88.0]
[1756489330195,12.10354624,203.82,203.76,40.58]
[1756489330381,11.36354624,203.8,203.75,4.9079103]
[1756489330552,11.36354624,203.8,203.74,45.48814408]
[1756489330750,0.06,203.82,203.77,11.36354624]
[1756489331082,0.06,203.82,203.77,40.58]
[1756489331449,11.36354624,203.81,203.77,40.58]
[1756489331663,11.42354624,203.82,203.77,40.58]
[1756489332364,0.06,203.82,203.78,16.27079915]
[1756489332565,0.06,203.82,203.77,56.85102707]
[1756489332771,0.06,203.82,203.77,40.58]
[1756489332772,11.42354624,203.82,203.77,40.58]
[1756489332979,11.36354624,203.81,203.77,40.58]
[1756489333163,0.06,203.82,203.78,88.0]
[1756489333365,0.06,203.82,203.78,100.02354624]
[1756489333565,0.06,203.82,203.79,11.36354624]
[1756489333868,0.06,203.82,203.8,11.36354624]
[1756489334073,0.06,203.82,203.81,11.36354624]
[1756489334273,0.06,203.82,203.81,12.02354624]
[1756489334484,0.06,203.82,203.81,16.93007683]
[1756489335981,0.06,203.82,203.81,5.56653059]
[1756489336174,0.06,203.82,203.81,16.93007683]
[1756489337179,0.06,203.87,203.82,13.59559401]
[1756489337489,0.06,203.87,203.83,40.56]
[1756489337689,0.06,203.87,203.85,88.0]
[1756489338095,12.04354624,203.86,203.85,88.0]
[1756489338271,11.36354624,203.86,203.85,88.0]
[1756489338475,11.42354624,203.87,203.85,88.0]
[1756489338679,12.10354624,203.87,203.85,88.0]
[1756489339197,12.04354624,203.86,203.85,88.0]
[1756489340394,11.36354624,203.86,203.85,88.0]
[1756489341072,11.36354624,203.86,203.82,40.56]
[1756489341276,0.06,203.87,203.82,45.46628222]
[1756489341676,12.04354624,203.86,203.82,40.56]
[1756489341873,12.04354624,203.86,203.82,45.46625423]
[1756489342090,11.42354624,203.87,203.82,46.12625423]
[1756489342299,0.06,203.87,203.82,57.48980047]
[1756489342590,0.06,203.86,203.84,11.36354624]
[1756489342793,0.06,203.86,203.85,12.02354624]
[1756489342989,0.06,203.86,203.85,11.36354624]
[1756489343393,0.06,203.86,203.85,12.02354624]
[1756489343971,0.06,203.86,203.85,104.92911405]
[1756489344693,0.06,203.86,203.85,104.26911405]
[1756489344912,0.06,203.86,203.85,88.0]
[1756489345206,12.10354624,203.86,203.85,88.0]
[1756489345410,26.0,203.83,203.73,0.69]
[1756489345587,11.36354624,203.78,203.74,27.98]
[1756489345986,11.36354624,203.79,203.75,4.90797546]
[1756489346705,11.36354624,203.79,203.75,5.56797546]
[1756489346900,11.36354624,203.79,203.75,4.90797546]
[1756489347074,26.0,203.84,203.73,11.39354624]
[1756489347075,11.36354624,203.76,203.73,0.03]
[1756489347280,11.36354624,203.74,203.73,0.03]
[1756489347675,12.04354624,203.74,203.73,0.03]
[1756489347975,16.95176259,203.74,203.73,0.03]
[1756489348176,26.0,203.71,203.7,0.03]
[1756489348384,37.50570781,203.71,203.7,0.03]
[1756489348589,51.78130182,203.71,203.7,0.03]
[1756489348908,13.73775558,203.7,203.68,0.03]
[1756489349205,25.10130182,203.69,203.68,0.03]
[1756489349409,25.78130182,203.69,203.68,0.03]
[1756489349587,12.18570781,203.69,203.68,0.03]
[1756489349781,52.74570781,203.69,203.68,0.03]
[1756489350311,57.65512898,203.69,203.68,0.03]
[1756489353702,13.59559401,203.68,203.67,0.03]
[1756489353881,11.50570781,203.67,203.66,0.03]
[1756489354296,17.07561108,203.67,203.66,0.03]
[1756489354603,37.36354624,203.67,203.66,0.03]
[1756489355601,11.36354624,203.7,203.66,0.69]
[1756489355788,11.36354624,203.71,203.67,0.66]
[1756489355995,26.0,203.71,203.67,0.66]
[1756489356301,37.36354624,203.71,203.67,0.66]
[1756489356489,11.36354624,203.71,203.67,0.66]
[1756489356674,11.36354624,203.71,203.67,88.66]
[1756489357201,11.36354624,203.72,203.68,0.66]
[1756489357582,11.36354624,203.72,203.67,92.90990007]
[1756489357805,11.36354624,203.71,203.67,88.66]
[1756489358002,11.36354624,203.68,203.67,88.0]
[1756489358182,30.90822595,203.74,203.67,88.0]
[1756489358183,11.36354624,203.69,203.67,88.0]
[1756489358385,11.36354624,203.7,203.67,88.0]
[1756489359389,11.36354624,203.71,203.67,88.66]
[1756489360404,11.36354624,203.71,203.67,93.56985958]
[1756489360880,26.0,203.74,203.68,0.66]
[1756489361083,37.36354624,203.74,203.69,11.36354624]
[1756489361302,0.06,203.7,203.69,12.02354624]
[1756489361608,0.06,203.7,203.69,0.66]
[1756489361776,0.06,203.7,203.69,16.93296741]
[1756489362395,0.06,203.7,203.69,4.90942117]
[1756489362591,0.06,203.7,203.67,0.03]
[1756489363688,0.06,203.7,203.68,0.66]
[1756489363896,0.06,203.7,203.69,88.0]
[1756489366404,11.42354624,203.7,203.69,88.0]
[1756489367090,0.06,203.7,203.69,88.66]
[1756489367485,0.06,203.7,203.69,93.56942117]
[1756489369087,0.06,203.7,203.69,104.93296741]
[1756489369286,0.06,203.7,203.69,104.27296741]
[1756489369484,0.06,203.7,203.69,133.46942117]
[1756489369693,0.06,203.7,203.69,145.49296741]
[1756489370599,0.06,203.7,203.69,134.12942117]
[1756489371086,0.06,203.7,203.69,145.49296741]
[1756489372514,0.06,203.7,203.69,163.09296741]
[1756489373800,0.06,203.73,203.69,175.36652035]
[1756489374020,0.06,203.73,203.72,11.36354624]
[1756489374318,0.06,203.75,203.74,13.59559401]
[1756489374610,0.06,203.75,203.74,65.51914025]
[1756489374808,0.06,203.75,203.74,145.77914025]
[1756489375484,0.06,203.75,203.74,233.77914025]
[1756489375685,0.06,203.75,203.74,238.6873566]
[1756489377704,0.66,203.84,203.74,238.6673566]
[1756489377907,0.66,203.84,203.79,11.36354624]
[1756489378089,0.06,203.86,203.75,79.6]
[1756489378090,11.36354624,203.82,203.75,79.6]
[1756489378411,11.36354624,203.82,203.77,11.36354624]
[1756489378622,0.66,203.82,203.78,40.54]
[1756489378819,0.66,203.81,203.78,40.54]
[1756489379710,0.06,203.8,203.78,45.44725102]
[1756489381020,0.06,203.8,203.79,88.0]
[1756489381230,11.42354624,203.8,203.79,88.0]
[1756489381596,12.08354624,203.8,203.79,88.0]
[1756489381910,0.72,203.8,203.79,88.0]
[1756489383090,16.99031758,203.8,203.79,88.0]
[1756489383426,16.99031758,203.8,203.75,40.54]
[1756489383613,11.36354624,203.77,203.74,40.54]
[1756489383786,11.36354624,203.75,203.74,40.54]
[1756489383987,11.36354624,203.76,203.74,40.54]
[1756489384189,12.02354624,203.76,203.74,40.54]
[1756489384597,11.36354624,203.76,203.74,40.54]
[1756489385093,11.42354624,203.8,203.74,51.90354624]
[1756489385411,0.06,203.8,203.78,11.36354624]
[1756489385718,0.06,203.8,203.78,40.52]
[1756489385914,0.06,203.8,203.79,4.90701212]
[1756489386488,0.06,203.8,203.79,93.58701212]
[1756489386702,0.06,203.8,203.79,104.27055836]
[1756489386896,0.06,203.8,203.79,92.90701212]
[1756489387414,0.06,203.8,203.79,93.58701212]
[1756489387588,0.06,203.8,203.79,104.95055836]
[1756489388290,0.06,203.8,203.79,16.95055836]
[1756489388808,0.06,203.8,203.79,110.63685358]
[1756489389015,0.06,203.8,203.79,110.14615237]
[1756489389191,0.06,203.8,203.79,110.28831394]
[1756489389192,1e-08,203.8,203.79,110.28831394]
[1756489389612,1e-08,203.8,203.79,30.68831394]
[1756489389914,0.06,203.86,203.83,39.59559401]
[1756489390118,0.06,203.86,203.85,18.64332339]
[1756489390320,0.06,203.86,203.85,70.52686963]
[1756489390492,0.06,203.87,203.86,11.50570781]
[1756489390698,0.06,203.87,203.86,12.18570781]
[1756489391205,0.06,203.87,203.86,100.18570781]
[1756489392197,0.06,203.87,203.86,105.09103499]
[1756489392398,0.06,203.87,203.86,131.09103499]
[1756489393126,0.06,203.87,203.86,119.72748875]
[1756489393316,0.06,203.87,203.86,185.04446743]
[1756489393619,0.622326,203.88,203.87,13.73775558]
[1756489393920,0.622326,203.88,203.87,25.78130182]
[1756489394500,0.622326,203.88,203.87,30.68638839]
[1756489394911,0.622326,203.88,203.87,19.32284215]
[1756489395122,0.622326,203.88,203.87,30.68638839]
[1756489395705,0.622326,203.88,203.87,110.28638839]
[1756489396821,0.622326,203.88,203.87,109.60638839]
[1756489397032,0.622326,203.88,203.87,224.36863281]
[1756489397822,0.622326,203.88,203.87,144.76863281]
[1756489398199,0.622326,203.88,203.87,159.04422682]
[1756489398509,0.622326,203.88,203.87,158.36422682]
[1756489399206,0.622326,203.88,203.87,158.50638839]
[1756489400107,0.622326,203.88,203.87,158.36422682]
[1756489400305,1.282326,203.88,203.87,133.38508657]
[1756489400631,1.282326,203.88,203.87,144.74863281]
[1756489401501,0.622326,203.88,203.87,144.74863281]
[1756489403407,0.622326,203.88,203.87,56.74863281]
[1756489405130,1.282326,203.88,203.87,56.74863281]
[1756489405308,1.282326,203.88,203.87,45.38508657]
[1756489405506,1.282326,203.88,203.87,52.47073108]
[1756489405926,1.282326,203.88,203.87,40.48]
[1756489406434,1.282326,203.88,203.87,128.48]
[1756489407232,1.282326,203.88,203.87,88.0]
[1756489407445,8.36797051,203.88,203.87,88.0]
[1756489407608,13.27281649,203.88,203.87,88.0]
[1756489408534,8.36797051,203.88,203.87,88.0]
[1756489409221,8.36797051,203.88,203.82,4.90624881]
[1756489409417,11.34479403,203.85,203.83,40.46]
[1756489409616,0.66,203.84,203.83,40.46]
[1756489412019,0.622326,203.88,203.83,45.36604915]
[1756489412221,0.67,203.87,203.84,11.34479403]
[1756489412506,0.67,203.87,203.85,45.36534234]
[1756489412729,0.67,203.86,203.85,40.46]
[1756489416517,12.01479403,203.86,203.83,0.03]
[1756489416843,11.34479403,203.84,203.83,0.03]
[1756489417346,12.01479403,203.84,203.83,0.03]
[1756489417545,26.0,203.86,203.83,0.03]
[1756489417713,0.67,203.84,203.83,0.03]
[1756489418320,0.67,203.84,203.83,88.03]
[1756489419113,1.352326,203.88,203.83,88.03]
[1756489419317,1.352326,203.88,203.84,51.78479403]
[1756489419517,0.682326,203.88,203.85,11.34479403]
[1756489419818,0.682326,203.88,203.86,40.44]
[1756489420021,0.682326,203.88,203.86,51.78479403]
[1756489420452,0.682326,203.88,203.87,4.90508657]
[1756489420621,0.682326,203.88,203.87,16.2498806]
[1756489421046,0.682326,203.88,203.86,56.69005507]
[1756489421250,0.682326,203.88,203.86,45.34526104]
[1756489421754,0.682326,203.88,203.86,56.69005507]
[1756489422080,0.682326,203.88,203.86,45.34526104]
[1756489422253,0.682326,203.88,203.87,11.34479403]
[1756489422443,0.682326,203.88,203.87,88.0]
[1756489422743,0.682326,203.88,203.87,92.90508657]
[1756489422915,0.682326,203.88,203.87,104.2498806]
[1756489423313,0.682326,203.88,203.87,92.90508657]
[1756489423930,1.352326,203.88,203.87,92.90508657]
[1756489424129,1.352326,203.88,203.87,88.0]
[1756489424442,0.682326,203.88,203.87,88.0]
[1756489424636,1.352326,203.88,203.87,88.0]
[1756489427249,12.69712003,203.88,203.87,88.0]
[1756489427435,1.352326,203.88,203.87,88.0]
[1756489428954,0.682326,203.88,203.87,88.0]
[1756489429657,0.682326,203.88,203.87,141.07187338]
[1756489431040,0.682326,203.88,203.87,154.66746739]
[1756489431257,1e-08,203.88,203.87,154.80962896]
[1756489431641,1e-08,203.89,203.88,39.59559401]
[1756489431861,1e-08,203.9,203.89,0.14216157]
[1756489432157,1e-08,203.9,203.89,68.9913292]
[1756489433143,1e-08,203.9,203.89,73.89593462]
[1756489433444,0.06,203.92,203.9,13.59559401]
[1756489433649,0.06,203.92,203.91,47.48678681]
[1756489433851,0.06,203.92,203.91,48.16678681]
[1756489434153,0.06,203.92,203.91,41.08]
[1756489434347,0.06,203.92,203.91,47.48678681]
[1756489434840,0.06,203.92,203.91,136.16678681]
[1756489435249,0.06,203.92,203.91,140.39091117]
[1756489435661,0.06,203.92,203.91,99.99091117]
[1756489435865,0.06,203.92,203.91,140.37091117]
[1756489436539,7.81678681,203.92,203.91,88.0]
[1756489436741,7.81678681,203.92,203.87,0.03]
[1756489437079,7.08678681,203.89,203.87,0.03]
[1756489437255,0.73,203.92,203.87,0.03]
[1756489437461,0.67,203.91,203.87,7.11678681]
[1756489437766,0.67,203.9,203.88,40.38]
[1756489438070,0.06,203.92,203.88,47.46678681]
[1756489438448,0.67,203.91,203.88,40.38]
[1756489438659,0.67,203.9,203.88,40.38]
[1756489439161,7.75678681,203.89,203.87,88.03]
[1756489439339,7.75678681,203.88,203.87,88.03]
[1756489439545,0.67,203.88,203.87,88.03]
[1756489439746,7.75678681,203.88,203.87,88.03]
[1756489440152,26.06,203.92,203.87,88.03]
[1756489440347,7.08678681,203.89,203.87,88.03]
[1756489440665,7.75678681,203.91,203.87,128.39]
[1756489440970,0.71,203.9,203.87,128.39]
[1756489441368,33.14678681,203.92,203.87,133.98500114]
[1756489441549,0.06,203.92,203.87,141.07178795]
[1756489442071,0.71,203.91,203.87,140.38178795]
[1756489442254,0.71,203.91,203.87,133.29500114]
[1756489442759,0.71,203.9,203.87,88.03]
[1756489442963,7.79678681,203.89,203.87,88.03]
[1756489443166,7.08678681,203.89,203.87,88.03]
[1756489443369,7.79678681,203.88,203.87,88.03]
[1756489444252,0.71,203.88,203.87,88.03]
[1756489444456,7.08678681,203.89,203.87,88.03]
[1756489444657,7.79678681,203.89,203.87,88.03]
[1756489444861,7.14678681,203.92,203.87,133.98506359]
[1756489445170,7.08678681,203.91,203.87,133.98506359]
[1756489445493,0.06,203.92,203.9,11.99115169]
[1756489445650,0.06,203.92,203.91,47.44678681]
[1756489445849,0.06,203.92,203.91,48.13678681]
[1756489447147,0.06,203.92,203.91,61.73238082]
[1756489447348,0.06,203.92,203.91,65.97182487]
[1756489447880,0.06,203.95,203.94,26.0]
[1756489448086,0.06,203.95,203.94,37.46839243]
[1756489448376,0.06,203.95,203.94,91.95182487]
[1756489448579,0.06,203.95,203.94,179.95182487]
[1756489449863,0.06,203.95,203.94,166.35623086]
[1756489451061,0.06,203.95,203.94,184.85522783]